Cogmind - Beta 13 @@@ ROGUE MODE // 2024.04.05 @ 00:19:49 Player: f_ Result: Destroyed by S-10 Pest with Light Assault Rifle Performance ------------- Evolutions (0) 0 Regions Visited (2) 400 Robots Destroyed (21) 105 Value Destroyed (304) 304 Prototype IDs (0) 0 Alien Tech Used (0) 0 Bonus (0) 0 TOTAL SCORE: 809 Bonus ------- None Cogmind --------- Core Integrity 0/250 Matter 269/300 Energy 247/265 System Corruption 2% Temperature Cool (0) Movement Rolling (215) Ox9 Location -10/Mines Parts ------- > --- POWER (1) -------- Improved Ion Engine > --- PROPULSION (2) --- Wheel > --- UTILITY (2) ------ Huge Storage Unit Utility Shielding > --- WEAPON (2) ------- Rocket Launcher Flail > --- INVENTORY (25) --- Heat Sink Transport Network Coupler Targeting Computer Medium Laser Assault Rifle Assault Rifle Grenade Launcher Mace Mace Mace Mace Peak State ------------ > --- POWER ------------ Ion Engine > --- PROPULSION ------- Wheel Compact Wheel > --- UTILITY ---------- Small Storage Unit Medium Armor Plating > --- WEAPON ----------- Mace Flail > --- INVENTORY -------- Heat Sink Medium Laser Assault Rifle Assault Rifle Mace Mace Mace [Rating: 11] Favorites ----------- Power Ion Engine Engine Ion Engine Propulsion Wheel Wheel Wheel Utility Huge Storage Unit Storage Huge Storage Unit Protection Utility Shielding Weapon Mace Energy Gun Medium Laser Ballistic Gun Assault Rifle Launcher Rocket Launcher Impact Weapon Mace Build | -11 -10 -10 ------- Run | Yrd Mat Min Slots Evolved . | . . . Power . | . . . Propulsion . | . . . Utility . | . . . Weapon . | . . . Parts Attached 18 | 6 6 6 Power 2 | 1 . 1 Engine 2 | 1 . 1 Core . | . . . Reactor . | . . . Propulsion 5 | 2 . 3 Treads . | . . . Leg . | . . . Wheel 5 | 2 . 3 Hover . | . . . Flight . | . . . Utility 5 | 1 3 1 Device . | . . . Storage 3 | 1 2 . Processor . | . . . Hackware . | . . . Protection 2 | . 1 1 Artifact . | . . . Weapon 6 | 2 3 1 Energy Gun 1 | 1 . . Energy Cannon . | . . . Ballistic Gun 1 | 1 . . Ballistic Cannon . | . . . Launcher 1 | . . 1 Special Weapon . | . . . Impact Weapon 3 | . 3 . Slashing Weapon . | . . . Piercing Weapon . | . . . Special Melee Weapon . | . . . Unidentified Prototypes . | . . . Parts Lost 5 | . . 5 Power 1 | . . 1 Propulsion 3 | . . 3 Utility 1 | . . 1 Weapon . | . . . Highest Loss Streak 2 | . . 2 To Critical Strikes . | . . . Average Slot Usage (%) 88 | . 100 86 Engine 13 | . 14 13 Wheel 21 | . 28 20 Storage 14 | . 14 14 Protection 10 | . 14 9 Impact Weapon 27 | . 25 28 Naked Turns . | . . . Heaviest Build 96 | 14 96 96 Greatest Support 26 | 26 26 26 Greatest Overweight (x) 9 | . 3 9 Average Overweight (x) 4 | . . 5 Largest Inventory Capacity 25 | 8 25 25 Average Capacity 22 | 7 12 25 Most Carried 11 | 3 10 11 Average Carried 9 | 1 8 10 Final Capacity 25 | 8 25 25 Final Carried 11 | 1 10 11 Class Distribution -------------------- 100% | Mutant Dominant Class ---------------- Mutant | -10/Materials Mutant | -10/Mines Resources | -11 -10 -10 ----------- Run | Yrd Mat Min Matter Collected 355 | 98 110 147 Remotely . | . . . Salvage Created 630 | . 145 485 Parts 15 | . 6 9 Haulers Intercepted 1 | . 1 . Recyclers Shooed . | . . . Parts Field Recycled . | . . . Retrieved Matter . | . . . Parts Self-Destructed . | . . . Prevented . | . . . Kills | -11 -10 -10 ------- Run | Yrd Mat Min Combat Hostiles Destroyed 14 | . 6 8 Melee 6 | . 2 4 Classes Destroyed 8 | . 3 5 Worker 1 | . 1 . Builder 1 | . . 1 Tunneler 1 | . . 1 Hauler 1 | . 1 . Recycler 3 | . . 3 Swarmer 10 | . 6 4 Grunt 2 | . . 2 Sentry 2 | . . 2 Best Kill Streak 7 | . 7 7 Combat Bots Only 6 | . 6 4 Max Kills in Single Turn 1 | . 1 1 Gunslinging . | . . . Exploded . | . . . Melee 1 | . 1 1 Uniques/NPCs Destroyed . | . . . Combat | -11 -10 -10 -------- Run | Yrd Mat Min Hostile Shots Fired 125 | . 21 104 Missed 32 | . 3 29 Damage Taken 880 | . 138 742 Core 250 | . 31 219 Absorbed by Shields . | . . . Core Remaining (%) 100 | 100 . . Volleys Fired 1 | . . 1 Largest 1 | . . 1 Hottest 33 | . . 33 Shots Fired 1 | . . 1 Gun . | . . . Cannon . | . . . Launcher 1 | . . 1 Special . | . . . Kinetic . | . . . Thermal . | . . . Explosive 1 | . . 1 Electromagnetic . | . . . Robot Hit Streak . | . . . Robot Miss Streak 1 | . . 1 Penetration Max . | . . . Secondary Targets . | . . . Shots Hit Robots 40 | . 14 26 Core Hits 6 | . 3 3 Critical Kills 1 | . 1 . Critical Parts Destroyed 9 | . 2 7 Critical Strikes 10 | . 3 7 Smash 10 | . 3 7 Melee Attacks 64 | . 25 39 Impact 64 | . 25 39 Slashing . | . . . Piercing . | . . . Sneak Attacks 8 | . 3 5 Combat Hostiles . | . . . Follow-up Attacks 5 | . 1 4 Damage Inflicted 1632 | . 605 1027 Guns . | . . . Cannons . | . . . Explosions . | . . . Melee 1632 | . 605 1027 Ramming . | . . . Kinetic . | . . . Thermal . | . . . Explosive . | . . . Electromagnetic . | . . . Impact 1632 | . 605 1027 Slashing . | . . . Piercing . | . . . Highest Corruption 2 | . 2 2 Average Corruption 2 | . 2 2 Corruption Purged . | . . . Corruption Blocked . | . . . Effects 12 | . 1 11 Message Errors 1 | . . 1 Matter Fused 1 | . . 1 Heat Flow Errors 5 | . . 5 Energy Discharges 1 | . . 1 Data Loss (minor) 3 | . 1 2 Alerts 1 | . . 1 Overload Shots . | . . . Overflow Damage 578 | . 169 409 Projectiles 12 | . 12 . Explosions . | . . . Melee 566 | . 157 409 Knockbacks 5 | . 4 1 Impact 4 | . 3 1 Kinetic . | . . . Secondary 1 | . 1 . Self-Inflicted Damage . | . . . Shots . | . . . Rammed . | . . . Targets Rammed . | . . . Kicked . | . . . Crushed . | . . . Highest Temperature 278 | . . 278 Average Temperature 114 | . . 114 Received Heat Transfer 165 | . . 165 Siege Activations . | . . . Robots Corrupted . | . . . Combat Hostiles . | . . . Parts Fried 14 | . 2 12 Impact Corruptions 27 | . 8 19 Robots Melted . | . . . Combat Hostiles . | . . . Parts Melted . | . . . Heat Transferred . | . . . Parts Sabotaged . | . . . Parts Stolen . | . . . Parts Stripped . | . . . Power Chain Reactions . | . . . Alert | -11 -10 -10 ------- Run | Yrd Mat Min Peak Influence 212 | . 212 192 Initial 82 | . . 82 Average 66 | . 82 65 Maximum Alert Level 1 | . 1 . Low Security (%) 96 | 100 78 100 Level 1 3 | . 21 . Level 2 . | . . . Level 3 . | . . . Level 4 . | . . . Level 5 . | . . . High Security . | . . . Max Security . | . . . Squads Dispatched 1 | . 1 . Investigation . | . . . Extermination . | . . . Reinforcement 1 | . 1 . Assault . | . . . Garrison . | . . . Intercept . | . . . Searches Triggered . | . . . Construction Impeded . | . . . Haulers Reinforced . | . . . Active Scanning Responses . | . . . Cargo Convoy Interrupts . | . . . Stealth | -11 -10 -10 --------- Run | Yrd Mat Min Distress Signals 1 | . 1 . Communications Jammed . | . . . Distress Signals . | . . . Times Spotted 25 | . 10 15 Peak Tracking Total 8 | . 8 4 Tactical Retreats 4 | . 1 3 Traps | -11 -10 -10 ------- Run | Yrd Mat Min Traps Triggered 1 | . 1 . Indirectly . | . . . Trap Hack Attempts . | . . . Triggered . | . . . Disarmed . | . . . Reprogrammed . | . . . Reused . | . . . Traps Extracted . | . . . Installed . | . . . Triggered . | . . . Machines | -11 -10 -10 ---------- Run | Yrd Mat Min Machines Disabled . | . . . Max in Single Turn . | . . . Machines Repaired . | . . . Machines Dismantled . | . . . Machines Sabotaged . | . . . Overloaded Fab Kills . | . . . Hacking | -11 -10 -10 --------- Run | Yrd Mat Min Machines Accessed . | . . . Terminals . | . . . Fabricators . | . . . Repair Stations . | . . . Recycling Units . | . . . Scanalyzers . | . . . Garrison Access . | . . . Total Hacks . | . . . Successful . | . . . Failed . | . . . Catastrophic . | . . . Database Lockouts . | . . . Manual . | . . . Terminals . | . . . Fabricators . | . . . Repair Stations . | . . . Recycling Units . | . . . Scanalyzers . | . . . Garrison Access . | . . . Terminal Hacks . | . . . Fabricator Hacks . | . . . Repair Station Hacks . | . . . Recycling Unit Hacks . | . . . Scanalyzer . | . . . Garrison Access Hacks . | . . . Unauthorized Hacks . | . . . Terminals . | . . . Fabricators . | . . . Repair Stations . | . . . Recycling Units . | . . . Scanalyzers . | . . . Garrison Access . | . . . Data Cores Recovered . | . . . Used . | . . . Hacking Detections . | . . . Full Trace Events . | . . . Feedback Events . | . . . Feedback Blocked . | . . . Robot Schematics Acquired . | . . . Robots Built . | . . . Authchips . | . . . Time . | . . . Total Robot Build Rating . | . . . Part Schematics Acquired . | . . . Parts Built . | . . . Authchips . | . . . Time . | . . . Total Part Build Rating . | . . . Parts Repaired . | . . . Time . | . . . Parts Recycled . | . . . Recycled Matter . | . . . Retrieved Matter . | . . . Retrieved Components . | . . . Parts Scanalyzed . | . . . Part Schematics Acquired . | . . . Parts Damaged . | . . . Bothacking | -11 -10 -10 ------------ Run | Yrd Mat Min Used RIF Installer . | . . . Robots Hacked . | . . . Non-combat . | . . . Combat . | . . . Robot Hacks Applied . | . . . Relay Couplers Released . | . . . Fabnet Peak Effective % . | . . . Robots Rewired . | . . . Allies Hacked . | . . . Hacks Repelled . | . . . Allies | -11 -10 -10 -------- Run | Yrd Mat Min Total Allies . | . . . Largest Group . | . . . Highest-Rated Group . | . . . Highest-Rated Ally . | . . . Total Orders . | . . . Ally Attacks . | . . . Total Damage . | . . . Kills . | . . . Allies Corrupted . | . . . Allies Melted . | . . . Intel | -11 -10 -10 ------- Run | Yrd Mat Min Robot Analysis Total . | . . . Derelict Logs Recovered 1 | . . 1 Drone Launches . | . . . Drone Recoveries . | . . . Exploration | -11 -10 -10 ------------- Run | Yrd Mat Min Turns Passed 1315 | 39 208 1068 Spaces Moved 658 | 32 130 496 Core 6 | 6 . . Treads . | . . . Legs . | . . . Wheels 652 | 26 130 496 Hover . | . . . Flight . | . . . Fastest Speed 50 | 50 90 135 Average Speed 154 | 82 102 172 Slowest Speed 215 | 90 135 215 Overloaded Moves . | . . . Propulsion Burnouts . | . . . Robots Hopped . | . . . Cave-ins Triggered . | . . . Exploration Rate (%) 38 | 4 31 81 Regions Visited 2 Branch Regions 1 Pre-discovered Areas . | . . . Known Exits Taken . | . . . Unknown Exits Taken 2 | 1 1 . Scrap Searched 1 | . . 1 Spaces Dug . | . . . Terrain Destroyed 9 | . . 9 Melee . | . . . Projectile . | . . . AOE 9 | . . 9 Terrain Rammed . | . . . Walls Destroyed . | . . . Machines Disabled . | . . . Actions | -11 -10 -10 --------- Run | Yrd Mat Min Total 865 | 44 168 653 Wait 113 | . 2 111 Move 656 | 31 129 496 Hop . | . . . Pick Up 20 | 7 9 4 Fast Attach 1 | . . 1 Attach 10 | 6 1 3 Detach . | . . . Swap 7 | . 5 2 Drop 2 | . 1 1 Fire 1 | . . 1 Melee 55 | . 21 34 Ram . | . . . Kick . | . . . Crush . | . . . Escape Stasis . | . . . Rewire . | . . . Trap . | . . . Miscellaneous . | . . . Route ------- -11/Scrapyard -10/Materials -10/Mines History --------- Turn | Location | Event 25 | -11/Scrapyard | Discovered new exit (range 16) 40 | -11/Scrapyard | Entered Materials 208 | -10/Materials | Discovered new exit (range 8) 248 | -10/Materials | Entered Mines 314 | -10/Mines | Build established: Mutant 500 | -10/Mines | Learned Materials stockpile data 539 | -10/Mines | Core integrity fell below 50% 764 | -10/Mines | Core integrity fell below 20% 1166 | -10/Mines | Received a Rocket Launcher from a helpful Derelict 1316 | -10/Mines | Destroyed by S-10 Pest with Light Assault Rifle Last Messages --------------- 01057_ System corrupted: Component data lost. 01160_ A derelict emerges from the shadows. 01161_ L2-2SC(g): "Some of my friends down here think you need a mining laser when you travel the depths." 01162_ L2-2SC(g): "You know what I say? NO!" 01163_ L2-2SC(g): "Everyone knows a good old rocket launcher goes a long way." 01164_ L2-2SC(g): "Need to get rid of a swarm? Done. Need a big hole in the wall? Done." 01165_ L2-2SC(g): "Need a small hole in the wall? Leave that to the mining laser wimps, I say!" 01166_ L2-2SC(g): "Would you like a rocket launcher? I know I would if I were you, so I'm going to lend you mine." 01166_ L2-2SC(g) slips back into the shadows. 01175_ System corrupted: Heat flow error (+201). 01211_ Acquired Rocket Launcher. 01221_ System corrupted: Heat flow error (+297). Map ----- +----------------------------------------------------+ | ????????????????????# #???????? | | ????????????????????# #???????? | | ????????????????????###### ##???????# | | ?????????????????????????# #####????## | | ?????????????????????????# #???## | | ??????????????? ?????#### ### #??## | | ??????????????? ????## ### #?## | | ??????????????? ??### ## ### | | ??????????????? ### ## ## | | ??????????????? ## ########## | | ??????????????? ## ### #??????## | | ??????????????? ## ##?# #?????## | | ??????????????# ## ##?# #?????# | | ??????????????# ## #?# #?????# | | ?????????????? ## #?# #?????## | | ?????????????? ### ##?# #??????### | | ??????????????# #?####??# #????????? | | ??????????????# ##??????# #????????? | | ??????####????# ###????# ##???????? | | ?????## ##???# ##???# ##??????? | | ????## #???# ##??# ###????? | | ????# #???# ##?### ##???? | | ????# #???# #???## ##??? | | ????# ##?? #???## #??? | | ????# ### ##??## #??? | | ????## @ #??## #??? | | ?????# ##?# ##?? | | ?????# ### ### ### | | ?????# ##?# # # s # | | ?????# ##??# #### ss | | ?????# #???# #????## | | ????## #???# #??#### ## # | | ???## #??? #?## #### ## | | ??## ##???##### #??######? | | ?## ##??????## ##????????? | | ?# #??????## #?????????? | | ?# ##????## #?????????? | | ?## #?# ## #?????????? | | ??## ### ##????????? | | ???## ### ## ####?????? | | ????### ## #### #?????? | | ??????## ##?#### #???? | | ???????# #????#### #???? | | ???????# #??????#### ##???? | | ???????## #??????????## ###????? | | ????????########????????????###??????? | | ?????????????????????????????????????? | | ?????????????????????????????????????? | | | | | +----------------------------------------------------+ Best States ------------- Heat Dissipation 25 Energy Generation 12 Energy Capacity 265 Matter Stores 300 Matter Capacity 300 Sight Range 16 Terrain Scan Density 10 Armor Coverage 225 Utility Shielding 33 Evasion (%) 42 Item Schematics ----------------- None Robot Schematics ------------------ None Fabricated ------------ Nothing Alien Tech Used ----------------- None Achievements -------------- None Challenges ------------ None Game ------ Seed CarbideKineticPlating Manual? 0 Play Time 00:08:38 Cumulative 150.1 hours Start 2024.04.05 @ 00:10:50 End 2024.04.05 @ 00:19:49 Sessions 1 Manual Loads 0 Difficulty Rogue Special Mode None Game No. 119 Rogue 114 Adventurer 0 Explorer 5 Win Type - Total 4 Types 1/0/1/2/0/0/0/0/0 Lore% 43 Gallery% 58 Achievement% 44 Wizard Run 0 Options --------- Layout 1 ASCII 0 Keyboard 0 Movement Mouse Keybinds 0 Fullscreen 2 Font 24/Tamsyn Map View 50x35 Zoom Use 0% Tactical HUD 1 Map Filters NONE Filters NONE Steam 1 RUN: a1034006-8b99-4d54-a3a2-7939286d9efa